lending/lending_fUSD_20250131
["ID","MTS","AMOUNT","RATE_DAILY","PERIOD"]
[351008848,1738283439257,-500.0,0.00019178,2]
[351008850,1738283439266,-503.71880243,0.00019178,2]
[351008852,1738283439276,-500.0,0.00019178,2]
[351008854,1738283439286,-2445.44,0.00019178,2]
[351008856,1738283439298,-543.73,0.00019178,2]
[351008859,1738283439309,-507.015695,0.00019178,2]
[351008861,1738283439319,-808.71,0.00019178,2]
[351008863,1738283439329,-500.0,0.00019178,2]
[351008865,1738283439339,-617.01895277,0.00019178,2]
[351008867,1738283439349,-1180.75,0.00019178,2]
[351008869,1738283439361,-909.91,0.00019178,2]
[351008871,1738283439371,-500.0,0.00019178,2]
[351008873,1738283439384,-233.11091464,0.00019178,2]
[351008875,1738283439393,-500.0,0.00019178,2]
[351008877,1738283439403,-637.65,0.00019178,2]
[351008879,1738283439413,-943.29,0.00019178,2]
[351008881,1738283439423,-915.38,0.00019178,2]
[351008883,1738283439433,-500.0,0.00019178,2]
[351008884,1738283439442,-500.0,0.00019178,2]
[351008885,1738283439452,-722.46,0.00019178,2]
[351008886,1738283439463,-503.36424412,0.00019178,2]
[351008887,1738283439474,-614.3925873,0.00019178,2]
[351008888,1738283439484,-500.0,0.00019178,2]
[351008889,1738283439495,-1923.55,0.00019178,2]
[351008890,1738283439505,-500.0,0.00019178,2]
[351008891,1738283439516,-685.84,0.00019178,2]
[351008892,1738283439526,-500.0,0.00019178,2]
[351008893,1738283439536,-500.0,0.00019178,2]
[351008894,1738283439549,-2330.69,0.00019178,2]
[351008895,1738283439559,-500.0,0.00019178,2]
[351008897,1738283439569,-500.0,0.00019178,2]
[351008898,1738283439579,-1054.3,0.00019178,2]
[351008899,1738283439589,-500.0,0.00019178,2]
[351008900,1738283439600,-500.0,0.00019178,2]
[351008901,1738283439612,-500.0,0.00019178,2]
[351008903,1738283439622,-500.0,0.00019178,2]
[351008906,1738283439632,-1645.88,0.00019178,2]
[351008908,1738283439642,-1220.18,0.00019178,2]
[351008910,1738283439652,-252.6006296,0.00019178,2]
[351008912,1738283439662,-500.0,0.00019178,2]
[351008914,1738283439672,-1663.17,0.00019178,2]
[351008916,1738283439681,-500.0,0.00019178,2]
[351008918,1738283439692,-500.0,0.00019178,2]
[351008920,1738283439701,-1486.63,0.00019178,2]
[351008922,1738283439710,-508.18334905,0.00019178,2]
[351008924,1738283439720,-1723.6,0.00019178,2]
[351008926,1738283439729,-1849.21,0.00019178,2]
[351008928,1738283439739,-855.24,0.00019178,2]
[351008930,1738283439749,-500.0,0.00019178,2]
[351008933,1738283439758,-579.31,0.00019178,2]
[351008936,1738283439780,-1184.37,0.00019178,2]
[351008938,1738283439790,-157.009766,0.00019178,2]
[351008940,1738283439801,-500.0,0.00019178,2]
[351008942,1738283439812,-506.26008731,0.00019178,2]
[351008944,1738283439822,-1035.97,0.00019178,2]
[351008946,1738283439833,-500.0,0.00019178,2]
[351008947,1738283439843,-505.85192936,0.00019178,2]
[351008949,1738283439853,-500.0,0.00019178,2]
[351008952,1738283439864,-500.0,0.00019178,2]
[351008955,1738283439874,-1137.61,0.00019178,2]
[351008958,1738283439884,-159.777065,0.00019178,2]
[351008961,1738283439894,-659.32,0.00019178,2]
[351008964,1738283439906,-648.37,0.00019178,2]
[351008967,1738283439916,-500.0,0.00019178,2]
[351008970,1738283439926,-2423.14,0.00019178,2]
[351008973,1738283439936,-500.0,0.00019178,2]
[351008976,1738283439947,-2065.42,0.00019178,2]
[351008979,1738283439957,-1493.43,0.00019178,2]
[351008981,1738283439967,-500.0,0.00019178,2]
[351008983,1738283439978,-2583.16,0.00019178,2]
[351008985,1738283439988,-1526.55,0.00019178,2]
[351008987,1738283439998,-3798.6,0.00019178,2]
[351008989,1738283440008,-500.0,0.00019178,2]
[351008991,1738283440019,-500.0,0.00019178,2]
[351008993,1738283440029,-500.0,0.00019178,2]
[351008996,1738283440039,-801.91,0.00019178,2]
[351008998,1738283440049,-500.0,0.00019178,2]
[351009000,1738283440059,-819.42,0.00019178,2]
[351009002,1738283440068,-500.0,0.00019178,2]
[351009004,1738283440078,-500.0,0.00019178,2]
[351009006,1738283440089,-2361.37,0.00019178,2]
[351009008,1738283440098,-500.0,0.00019178,2]
[351009010,1738283440108,-9019.13,0.00019178,2]
[351009012,1738283440119,-1158.86,0.00019178,2]
[351009014,1738283440128,-5072.91,0.00019178,2]
[351009016,1738283440138,-2879.63,0.00019178,2]
[351009018,1738283440148,-500.0,0.00019178,2]
[351009020,1738283440158,-605.78,0.00019178,2]
[351009022,1738283440168,-500.0,0.00019178,2]
[351009024,1738283440177,-3220.86,0.00019178,2]
[351009026,1738283440187,-856.15,0.00019178,2]
[351009028,1738283440197,-869.3,0.00019178,2]
[351009030,1738283440207,-500.0,0.00019178,2]
[351009032,1738283440219,-2400.04,0.00019178,2]
[351009034,1738283440228,-2224.24,0.00019178,2]
[351009036,1738283440238,-1603.53,0.00019178,2]
[351009038,1738283440248,-500.0,0.00019178,2]
[351009040,1738283440258,-4456.64,0.00019178,2]
[351009042,1738283440269,-500.0,0.00019178,2]
[351009044,1738283440279,-1772.39,0.00019178,2]
[351009046,1738283440289,-500.0,0.00019178,2]
[351009049,1738283440301,-500.0,0.00019178,2]
[351009051,1738283440311,-1944.96,0.00019178,2]
[351009053,1738283440322,-500.0,0.00019178,2]
[351009055,1738283440333,-3668.46,0.00019178,2]
[351009057,1738283440343,-1113.11,0.00019178,2]
[351009059,1738283440353,-1521.03,0.00019178,2]
[351009061,1738283440363,-512.62,0.00019178,2]
[351009063,1738283440373,-500.0,0.00019178,2]
[351009065,1738283440383,-10272.14,0.00019178,2]
[351009067,1738283440392,-1904.47,0.00019178,2]
[351009069,1738283440402,-825.87,0.00019178,2]
[351009071,1738283440412,-500.0,0.00019178,2]
[351009073,1738283440422,-1614.3,0.00019178,2]
[351009075,1738283440431,-3196.21,0.00019178,2]
[351009077,1738283440442,-500.0,0.00019178,2]
[351009079,1738283440451,-533.51,0.00019178,2]
[351009081,1738283440461,-2424.53,0.00019178,2]
[351009083,1738283440471,-25033.25,0.00019178,2]
[351009085,1738283440481,-2545.93,0.00019178,2]
[351009087,1738283440490,-504.62081334,0.00019178,2]
[351009089,1738283440500,-500.0,0.00019178,2]
[351009091,1738283440510,-901.77,0.00019178,2]
[351009105,1738283440634,-500.0,0.00019178,2]
[351009107,1738283440644,-5386.91,0.00019178,2]
[351009109,1738283440654,-984.01,0.00019178,2]
[351009111,1738283440663,-500.0,0.00019178,2]
[351009113,1738283440672,-596.89,0.00019178,2]
[351009115,1738283440682,-500.0,0.00019178,2]
[351009117,1738283440691,-6188.16,0.00019178,2]
[351009119,1738283440701,-514.61640605,0.00019178,2]
[351009121,1738283440710,-1140.03,0.00019178,2]
[351009124,1738283440720,-500.0,0.00019178,2]
[351009126,1738283440730,-500.0,0.00019178,2]
[351009128,1738283440739,-2016.53,0.00019178,2]
[351009130,1738283440748,-500.0,0.00019178,2]
[351009132,1738283440757,-500.0,0.00019178,2]
[351009134,1738283440766,-3929.33,0.00019178,2]
[351009136,1738283440775,-2538.17,0.00019178,2]
[351009137,1738283440785,-2427.08,0.00019178,2]
[351009140,1738283440794,-500.0,0.00019178,2]
[351009142,1738283440803,-2071.5,0.00019178,2]
[351009143,1738283440813,-500.0,0.00019178,2]
[351009145,1738283440822,-1593.92,0.00019178,2]
[351009147,1738283440831,-774.99,0.00019178,2]
[351009149,1738283440840,-437.65496733,0.00019178,2]
[351009151,1738283440849,-500.0,0.00019178,2]
[351009153,1738283440858,-1024.05,0.00019178,2]
[351009155,1738283440868,-500.0,0.00019178,2]
[351009157,1738283440877,-878.34,0.00019178,2]
[351009159,1738283440886,-500.0,0.00019178,2]
[351009161,1738283440896,-974.76,0.00019178,2]
[351009163,1738283440906,-500.0,0.00019178,2]
[351009165,1738283440915,-526.04,0.00019178,2]
[351009168,1738283440925,-1596.4,0.00019178,2]
[351009170,1738283440935,-8058.85,0.00019178,2]
[351009172,1738283440944,-500.0,0.00019178,2]
[351009174,1738283440953,-500.0,0.00019178,2]
[351009176,1738283440962,-2046.01,0.00019178,2]
[351009178,1738283440971,-1284.88,0.00019178,2]
[351009180,1738283440980,-500.0,0.00019178,2]
[351009181,1738283440989,-2131.24,0.00019178,2]
[351009183,1738283440998,-500.0,0.00019178,2]
[351009185,1738283441008,-500.0,0.00019178,2]
[351009188,1738283441018,-2355.6,0.00019178,2]
[351009189,1738283441027,-2673.2,0.00019178,2]
[351009191,1738283441036,-527.17227231,0.00019178,2]
[351009193,1738283441046,-2869.47,0.00019178,2]
[351009196,1738283441055,-2488.36,0.00019178,2]
[351009198,1738283441064,-3039.77,0.00019178,2]
[351009199,1738283441073,-1138.81,0.00019178,2]
[351009201,1738283441083,-500.0,0.00019178,2]
[351009204,1738283441092,-604.64,0.00019178,2]
[351009206,1738283441102,-1168.24,0.00019178,2]
[351009207,1738283441112,-512.19507495,0.00019178,2]
[351009209,1738283441121,-500.0,0.00019178,2]
[351009211,1738283441131,-2486.75,0.00019178,2]
[351009213,1738283441140,-508.81130336,0.00019178,2]
[351009215,1738283441149,-2279.19,0.00019178,2]
[351009218,1738283441159,-500.0,0.00019178,2]
[351009220,1738283441169,-1463.17,0.00019178,2]
[351009222,1738283441178,-850.97,0.00019178,2]
[351009224,1738283441187,-3229.99,0.00019178,2]
[351009226,1738283441197,-538.22,0.00019178,2]
[351009228,1738283441206,-618.95,0.00019178,2]
[351009230,1738283441216,-500.0,0.00019178,2]
[351009231,1738283441227,-4083.59,0.00019178,2]
[351009234,1738283441236,-1700.14,0.00019178,2]
[351009236,1738283441246,-159.777064,0.00019178,2]
[351009238,1738283441255,-500.0,0.00019178,2]
[351009240,1738283441265,-2180.06,0.00019178,2]
[351009242,1738283441274,-2135.02,0.00019178,2]
[351009243,1738283441285,-3309.38,0.00019178,2]
[351009245,1738283441296,-500.0,0.00019178,2]
[351009247,1738283441306,-1065.14,0.00019178,2]
[351009250,1738283441316,-4653.65,0.00019178,2]
[351009252,1738283441325,-5379.04,0.00019178,2]
[351009254,1738283441334,-2162.64,0.00019178,2]
[351009256,1738283441343,-2722.61,0.00019178,2]
[351009258,1738283441352,-500.0,0.00019178,2]
[351009260,1738283441365,-540.22,0.00019178,2]
[351009262,1738283441375,-550.13,0.00019178,2]
[351009264,1738283441384,-6835.96,0.00019178,2]
[351009266,1738283441394,-2864.33,0.00019178,2]
[351009268,1738283441403,-2017.79,0.00019178,2]
[351009270,1738283441412,-3217.34,0.00019178,2]
[351009272,1738283441421,-908.69,0.00019178,2]
[351009274,1738283441431,-500.0,0.00019178,2]
[351009276,1738283441440,-752.22,0.00019178,2]
[351009278,1738283441450,-500.0,0.00019178,2]
[351009280,1738283441459,-539.79,0.00019178,2]
[351009282,1738283441468,-2701.52,0.00019178,2]
[351009284,1738283441477,-1116.32,0.00019178,2]
[351009286,1738283441486,-3666.77,0.00019178,2]
[351009288,1738283441496,-500.0,0.00019178,2]
[351009290,1738283441506,-1526.37,0.00019178,2]
[351009292,1738283441515,-2643.21,0.00019178,2]
[351009294,1738283441524,-900.33,0.00019178,2]
[351009296,1738283441533,-2079.67,0.00019178,2]
[351009298,1738283441543,-572.96,0.00019178,2]
[351009299,1738283441552,-500.0,0.00019178,2]
[351009300,1738283441562,-7449.97,0.00019178,2]
[351009301,1738283441571,-623.16,0.00019178,2]
[351009302,1738283441581,-694.15,0.00019178,2]
[351009303,1738283441590,-500.0,0.00019178,2]
[351009304,1738283441599,-1990.4,0.00019178,2]
[351009305,1738283441608,-1296.69,0.00019178,2]
[351009306,1738283441618,-500.0,0.00019178,2]
[351009307,1738283441627,-573.9,0.00019178,2]
[351009308,1738283441636,-4643.77,0.00019178,2]
[351009310,1738283441645,-2474.37,0.00019178,2]
[351009312,1738283441654,-500.0,0.00019178,2]
[351009314,1738283441664,-1376.17,0.00019178,2]
[351009316,1738283441673,-500.0,0.00019178,2]
[351009318,1738283441682,-2481.74,0.00019178,2]
[351009320,1738283441691,-11666.17,0.00019178,2]
[351009322,1738283441701,-1523.44,0.00019178,2]
[351009324,1738283441710,-2063.2,0.00019178,2]
[351009326,1738283441719,-500.0,0.00019178,2]
[351009328,1738283441728,-500.0,0.00019178,2]
[351009330,1738283441738,-1095.97,0.00019178,2]
[351009332,1738283441747,-1733.68,0.00019178,2]
[351009334,1738283441756,-538.16,0.00019178,2]
[351009336,1738283441765,-4789.4,0.00019178,2]
[351009338,1738283441774,-500.0,0.00019178,2]
[351009340,1738283441783,-500.0,0.00019178,2]
[351009342,1738283441792,-500.0,0.00019178,2]
[351009344,1738283441802,-500.0,0.00019178,2]
[351009347,1738283441812,-2655.69,0.00019178,2]
[351009348,1738283441821,-917.57,0.00019178,2]
[351009350,1738283441830,-500.0,0.00019178,2]
[351009353,1738283441839,-620.86,0.00019178,2]
[351009355,1738283441849,-500.0,0.00019178,2]
[351009357,1738283441858,-1903.39,0.00019178,2]
[351009359,1738283441868,-1215.69,0.00019178,2]
[351009361,1738283441877,-500.0,0.00019178,2]
[351009363,1738283441887,-500.0,0.00019178,2]
[351009365,1738283441896,-500.0,0.00019178,2]
[351009367,1738283441905,-500.0,0.00019178,2]
[351009368,1738283441915,-500.0,0.00019178,2]
[351009371,1738283441924,-500.0,0.00019178,2]
[351009373,1738283441934,-500.0,0.00019178,2]
[351009375,1738283441943,-500.0,0.00019178,2]
[351009376,1738283441953,-796.62,0.00019178,2]
[351009379,1738283441962,-872.7,0.00019178,2]
[351009381,1738283441971,-601.17,0.00019178,2]
[351009383,1738283441982,-965.57,0.00019178,2]
[351009385,1738283441992,-500.0,0.00019178,2]
[351009387,1738283442001,-2246.54,0.00019178,2]
[351009389,1738283442011,-562.84,0.00019178,2]
[351009391,1738283442020,-500.0,0.00019178,2]
[351009393,1738283442029,-501.97862297,0.00019178,2]
[351009395,1738283442039,-500.0,0.00019178,2]
[351009397,1738283442048,-2276.17,0.00019178,2]
[351009399,1738283442058,-1076.69,0.00019178,2]
[351009401,1738283442067,-1262.14,0.00019178,2]
[351009403,1738283442076,-500.0,0.00019178,2]
[351009405,1738283442085,-502.52578093,0.00019178,2]
[351009407,1738283442097,-500.0,0.00019178,2]
[351009409,1738283442106,-500.0,0.00019178,2]
[351009411,1738283442116,-2413.39,0.00019178,2]
[351009413,1738283442125,-1257.09,0.00019178,2]
[351009414,1738283442135,-3402.45,0.00019178,2]
[351009415,1738283442144,-802.98,0.00019178,2]
[351009416,1738283442154,-500.0,0.00019178,2]
[351009417,1738283442164,-500.0,0.00019178,2]
[351009418,1738283442173,-500.0,0.00019178,2]
[351009420,1738283442186,-824.92,0.00019178,2]
[351009422,1738283442197,-3242.13,0.00019178,2]
[351009424,1738283442206,-1811.6,0.00019178,2]
[351009426,1738283442217,-548.65,0.00019178,2]
[351009427,1738283442228,-3284.93,0.00019178,2]
[351009430,1738283442238,-232.38792621,0.00019178,2]
[351009432,1738283442248,-752.3,0.00019178,2]
[351009434,1738283442259,-2265.0,0.00019178,2]
[351009436,1738283442268,-598.46836268,0.00019178,2]
[351009438,1738283442278,-571.88,0.00019178,2]
[351009440,1738283442287,-500.0,0.00019178,2]
[351009442,1738283442299,-3609.98,0.00019178,2]
[351009444,1738283442308,-500.0,0.00019178,2]
[351009446,1738283442318,-213.54180799,0.00019178,2]
[351009498,1738283442809,-257.57696788,0.00019178,2]
[351009500,1738283442819,-215.11443059,0.00019178,2]
[351009502,1738283442829,-500.0,0.00019178,2]
[351009505,1738283442838,-574.69903636,0.00019178,2]
[351009507,1738283442849,-371.88844905,0.00019178,2]
[351009509,1738283442858,-1364.9,0.00019178,2]
[351009512,1738283442869,-1633.4,0.00019178,2]
[351009515,1738283442879,-500.0,0.00019178,2]
[351009517,1738283442890,-3593.33,0.00019178,2]
[351009519,1738283442899,-211.29781564,0.00019178,2]
[351009521,1738283442909,-500.0,0.00019178,2]
[351009523,1738283442919,-802.27,0.00019178,2]
[351009525,1738283442928,-2581.96,0.00019178,2]
[351009528,1738283442938,-500.0,0.00019178,2]
[351009530,1738283442948,-500.0,0.00019178,2]
[351009532,1738283442958,-553.67408491,0.00019178,2]
[351009534,1738283442968,-5361.34,0.00019178,2]
[351009536,1738283442978,-1835.58,0.00019178,2]
[351009538,1738283442987,-500.0,0.00019178,2]
[351009540,1738283442997,-855.89,0.00019178,2]
[351009542,1738283443008,-500.0,0.00019178,2]
[351009544,1738283443016,-821.39965759,0.00019178,2]
[351009546,1738283443028,-264.94034241,0.00019178,2]
[351009548,1738283443037,-2719.77,0.00019178,2]
[351009551,1738283443047,-505.77,0.00019178,2]
[351009553,1738283443057,-500.0,0.00019178,2]
[351009555,1738283443067,-719.81,0.00019178,2]
[351009557,1738283443076,-1851.32,0.00019178,2]
[351009559,1738283443086,-500.0,0.00019178,2]
[351009561,1738283443096,-1016.06,0.00019178,2]
[351009563,1738283443106,-709.33,0.00019178,2]
[351009565,1738283443117,-1966.51,0.00019178,2]
[351009567,1738283443127,-500.0,0.00019178,2]
[351009569,1738283443136,-644.1,0.00019178,2]
[351009571,1738283443145,-1470.34,0.00019178,2]
[351009573,1738283443153,-1007.69,0.00019178,2]
[351009576,1738283443163,-500.0,0.00019178,2]
[351009578,1738283443172,-500.0,0.00019178,2]
[351009580,1738283443181,-500.0,0.00019178,2]
[351009582,1738283443190,-500.0,0.00019178,2]
[351009584,1738283443200,-500.0,0.00019178,2]
[351009586,1738283443209,-500.0,0.00019178,2]
[351009588,1738283443222,-803.05,0.00019178,2]
[351009590,1738283443232,-1682.93743755,0.00019178,2]
[351009593,1738283443249,-89.36256245,0.00019178,2]
[351009595,1738283443259,-221.91244117,0.00019178,2]
[351009597,1738283443270,-278.08755883,0.00019178,2]
[351009599,1738283443280,-637.38835153,0.00019178,2]
[351009602,1738283443293,-929.13164847,0.00019178,2]
[351009604,1738283443304,-1229.29707581,0.00019178,2]
[351009664,1738283444205,-472.55090637,0.00018978,2]
[351009665,1738283444219,-1089.85973336,0.00019178,2]
[351009666,1738283444419,-760.42169085,0.00019178,2]
[351009667,1738283444844,-472.55090635,0.00019028,2]
[351009668,1738283444854,-202.57830915,0.00019178,2]
[351009669,1738283444865,-371.0707845,0.00019178,2]
[351009670,1738283444965,-457.04240633,0.00019178,2]
[351009671,1738283444977,-67.30419367,0.00019178,2]
[351009686,1738283446035,-432.69580633,0.00019178,2]
[351009687,1738283446045,-1551.92508038,0.00019178,2]
[351009811,1738283625635,156.38,0.00010137,2]
[351009813,1738284391141,-220.68064511,0.00013,2]
[351009814,1738284560089,-329.31935489,0.00013,2]
[351009815,1738284560110,-151.10989538,0.00015,20]
[351009816,1738284560131,-483.0,0.000162,5]
[351009817,1738284560153,-376.73,0.00016225,2]
[351009818,1738284560314,233.0,0.00023,120]
[351009819,1738284583750,96.50114973,0.00010137,2]
[351009820,1738284583795,70.71885027,0.00010137,2]
[351009825,1738284632240,-181.36,0.00018085,2]
[351009826,1738284632251,-363.08434844,0.00018113,2]
[351009829,1738284638338,-710.83276191,0.00018113,2]
[351009830,1738284638362,-3810.80288965,0.00018113,2]
[351009831,1738284638372,-324.4,0.0001818,2]
[351009832,1738284638384,-250.28,0.00018197,2]
[351009833,1738284638395,-1000.0,0.00018217,2]
[351009834,1738284638405,-682.008783,0.00018284,2]
[351009835,1738284638416,-362.56,0.00018284,2]
[351009836,1738284638426,-150.0,0.00018466,2]
[351009837,1738284638436,-205.52,0.00018481,30]
[351009838,1738284638446,-376.73,0.00018489,2]
[351009839,1738284638457,-2122.0,0.000185,2]
[351009840,1738284638468,-152.0,0.00018644,3]
[351009841,1738284638482,-152.0,0.00018939,4]
[351009842,1738284638492,-3000.0,0.0001899,2]
[351009843,1738284638503,-774.18,0.00019,2]
[351009844,1738284638512,-439.12,0.00019,2]
[351009845,1738284638521,-438.12,0.00019,2]
[351009846,1738284638531,-1574.0,0.00019,2]
[351009847,1738284638541,-400.31558758,0.00019054,2]
[351009848,1738284638550,-1223.97002116,0.00019078,2]
[351009849,1738284638560,-500.0,0.00019078,2]
[351009850,1738284638570,-1000.0,0.00019078,2]
[351009851,1738284638579,-5000.0,0.00019078,2]
[351009852,1738284638589,-1208.6144,0.00019078,2]
[351009853,1738284638600,-2500.0,0.00019078,2]
[351009854,1738284638610,-774.18,0.000191,2]
[351009855,1738284638619,-439.12,0.000191,2]
[351009856,1738284638629,-250.28,0.00019106,2]
[351009857,1738284638639,-350.01321798,0.00019147,2]
[351009858,1738284638649,-1223.9700211,0.00019147,2]
[351009859,1738284638658,-500.0,0.00019164,2]
[351009860,1738284638668,-700.0,0.00019164,2]
[351009861,1738284638678,-279.87,0.00019168,2]
[351009862,1738284638688,-500.0,0.00019173,2]
[351009863,1738284638702,-171.296,0.00019177,2]
[351009864,1738284638712,-109.97991266,0.00019177,2]
[351009865,1738284638728,-1138.72108734,0.00019177,2]
[351009866,1738284638738,-2732.941259,0.00019178,2]
[351009867,1738284638748,-2151.507366,0.00019178,2]
[351009868,1738284638758,-500.0,0.00019178,2]
[351009869,1738284638769,-155.74606,0.00019178,2]
[351009870,1738284638778,-756.76,0.00019178,2]
[351009871,1738284638788,-154.4946,0.00019178,2]
[351009872,1738284638797,-500.0,0.00019178,2]
[351009873,1738284638807,-642.79,0.00019178,2]
[351009874,1738284638817,-500.0,0.00019178,2]
[351009875,1738284638827,-500.0,0.00019178,2]
[351009876,1738284638836,-500.0,0.00019178,2]
[351009877,1738284638846,-500.0,0.00019178,2]
[351009878,1738284638855,-500.0,0.00019178,2]
[351009879,1738284638865,-500.0,0.00019178,2]
[351009880,1738284638874,-500.0,0.00019178,2]
[351009881,1738284638883,-500.0,0.00019178,2]
[351009882,1738284638893,-500.0,0.00019178,2]
[351009883,1738284638902,-500.0,0.00019178,2]
[351009884,1738284638912,-537.7903153,0.00019178,2]
[351009885,1738284638921,-500.0,0.00019178,2]
[351009886,1738284638931,-500.0,0.00019178,2]
[351009887,1738284638940,-500.0,0.00019178,2]
[351009888,1738284638950,-500.0,0.00019178,2]
[351009889,1738284638960,-500.0,0.00019178,2]
[351009890,1738284638970,-500.0,0.00019178,2]
[351009891,1738284638980,-500.0,0.00019178,2]
[351009892,1738284638991,-505.23110368,0.00019178,2]
[351009893,1738284639002,-500.0,0.00019178,2]
[351009894,1738284639011,-500.0,0.00019178,2]
[351009895,1738284639020,-190.64886265,0.00019178,2]
[351009896,1738284639030,-500.0,0.00019178,2]
[351009897,1738284639040,-500.0,0.00019178,2]
[351009898,1738284639049,-534.7838831,0.00019178,2]
[351009899,1738284639059,-500.0,0.00019178,2]
[351009900,1738284639068,-511.40683889,0.00019178,2]
[351009901,1738284639078,-500.0,0.00019178,2]
[351009902,1738284639089,-500.0,0.00019178,2]
[351009903,1738284639099,-423.99397878,0.00019178,2]
[351009904,1738284639110,-500.0,0.00019178,2]
[351009905,1738284639120,-829.02,0.00019178,2]
[351009906,1738284639130,-500.0,0.00019178,2]
[351009907,1738284639141,-500.0,0.00019178,2]
[351009908,1738284639151,-722.86,0.00019178,2]
[351009909,1738284639175,-500.0,0.00019178,2]
[351009910,1738284639185,-500.0,0.00019178,2]
[351009911,1738284639195,-500.0,0.00019178,2]
[351009912,1738284639205,-678.12,0.00019178,2]
[351009913,1738284639215,-960.78,0.00019178,2]
[351009914,1738284639225,-502.35129609,0.00019178,2]
[351009915,1738284639235,-500.0,0.00019178,2]
[351009916,1738284639244,-812.87,0.00019178,2]
[351009917,1738284639254,-500.0,0.00019178,2]
[351009918,1738284639264,-500.0,0.00019178,2]
[351009919,1738284639274,-500.0,0.00019178,2]
[351009920,1738284639283,-500.0,0.00019178,2]
[351009921,1738284639293,-500.0,0.00019178,2]
[351009922,1738284639304,-503.49807648,0.00019178,2]
[351009923,1738284639314,-503.76848045,0.00019178,2]
[351009924,1738284639324,-500.0,0.00019178,2]
[351009925,1738284639334,-885.84,0.00019178,2]
[351009926,1738284639344,-623.62,0.00019178,2]
[351009927,1738284639354,-500.0,0.00019178,2]
[351009928,1738284639363,-500.0,0.00019178,2]
[351009929,1738284639373,-500.0,0.00019178,2]
[351009930,1738284639383,-500.0,0.00019178,2]
[351009931,1738284639393,-500.0,0.00019178,2]
[351009932,1738284639403,-500.0,0.00019178,2]
[351009933,1738284639412,-500.0,0.00019178,2]
[351009934,1738284639424,-502.27825857,0.00019178,2]
[351009935,1738284639434,-500.0,0.00019178,2]
[351009936,1738284639444,-639.24,0.00019178,2]
[351009937,1738284639454,-500.0,0.00019178,2]
[351009938,1738284639463,-500.0,0.00019178,2]
[351009939,1738284639473,-500.0,0.00019178,2]
[351009940,1738284639482,-500.0,0.00019178,2]
[351009941,1738284639492,-500.0,0.00019178,2]
[351009942,1738284639502,-500.0,0.00019178,2]
[351009943,1738284639512,-500.0,0.00019178,2]
[351009944,1738284639523,-821.93,0.00019178,2]
[351009945,1738284639532,-500.0,0.00019178,2]
[351009946,1738284639542,-500.0,0.00019178,2]
[351009947,1738284639552,-500.0,0.00019178,2]
[351009948,1738284639561,-500.0,0.00019178,2]
[351009949,1738284639571,-814.11,0.00019178,2]
[351009950,1738284639581,-157.53928133,0.00019178,2]
[351009951,1738284639592,-500.0,0.00019178,2]
[351009952,1738284639602,-500.0,0.00019178,2]
[351009953,1738284639612,-683.11,0.00019178,2]
[351009954,1738284639622,-500.0,0.00019178,2]
[351009955,1738284639632,-500.0,0.00019178,2]
[351009956,1738284639642,-515.19623651,0.00019178,2]